bitfinex/quotes_SOLUSD_20250210
["timestamp","ask_amount","ask_price","bid_price","bid_amount"]
[1739168646683,13.1810695,202.4,202.36,3.9833]
[1739168647149,13.1810695,202.42,202.36,3.9833]
[1739168648477,33.1810695,202.42,202.36,3.9833]
[1739168649259,14.6906695,202.43,202.36,13.2110695]
[1739168650285,14.6906695,202.43,202.37,3.9531]
[1739168650575,94.2440695,202.45,202.38,13.1810695]
[1739168650782,0.063,202.45,202.41,13.1810695]
[1739168652073,0.063,202.45,202.42,3.9521]
[1739168653268,0.063,202.45,202.42,17.1331695]
[1739168653478,0.063,202.45,202.44,13.1810695]
[1739168653960,0.063,202.45,202.44,17.1327695]
[1739168655078,0.063,202.45,202.44,30.79559803]
[1739168656966,80.589,202.52,202.45,0.25098]
[1739168657169,14.8464695,202.53,202.46,17.1323695]
[1739168657590,13.1810695,202.53,202.46,17.1323695]
[1739168657881,13.1810695,202.54,202.47,13.1810695]
[1739168658264,13.2440695,202.55,202.47,13.1810695]
[1739168658991,13.2440695,202.55,202.48,13.1810695]
[1739168659887,13.1810695,202.54,202.47,13.1810695]
[1739168660078,13.1810695,202.53,202.46,13.1810695]
[1739168661178,13.1810695,202.54,202.47,13.1810695]
[1739168661984,13.1810695,202.52,202.46,3.9513]
[1739168662971,13.1810695,202.53,202.46,17.1323695]
[1739168664886,13.1810695,202.51,202.44,13.2110695]
[1739168665080,13.1810695,202.51,202.44,3.9816]
[1739168665386,13.1810695,202.52,202.45,13.1810695]
[1739168665587,8.4405835,202.52,202.45,8.4405835]
[1739168665995,8.4405835,202.51,202.44,12.4221835]
[1739168667000,3.9498,202.54,202.44,0.03]
[1739168667001,8.4405835,202.48,202.44,0.03]
[1739168667387,8.4405835,202.51,202.44,0.03]
[1739168667874,8.4405835,202.51,202.44,8.4705835]
[1739168668503,8.4405835,202.5,202.44,3.9816]
[1739168669190,8.4405835,202.52,202.44,12.4221835]
[1739168671903,89.0295835,202.54,202.47,8.4405835]
[1739168672097,89.0295835,202.54,202.46,3.9513]
[1739168672098,80.589,202.54,202.48,8.4405835]
[1739168672289,80.589,202.54,202.46,3.9513]
[1739168672290,80.589,202.54,202.49,8.4405835]
[1739168672699,80.589,202.54,202.48,8.4405835]
[1739168672907,80.589,202.54,202.47,22.10341203]
[1739168672908,89.0295835,202.54,202.47,22.10341203]
[1739168673403,8.4405835,202.52,202.46,3.9513]
[1739168674005,8.4405835,202.51,202.46,3.9513]
[1739168674608,8.4405835,202.52,202.46,3.9513]
[1739168674909,8.4405835,202.52,202.44,3.9816]
[1739168674910,8.4405835,202.48,202.44,3.9816]
[1739168675206,8.4405835,202.49,202.44,3.9816]
[1739168675585,13.19260783,202.49,202.44,3.9816]
[1739168675781,13.19260783,202.49,202.44,0.03]
[1739168675981,13.19260783,202.48,202.44,0.03]
[1739168676293,13.19260783,202.46,202.44,0.03]
[1739168676999,13.19260783,202.45,202.44,0.03]
[1739168679803,13.19260783,202.46,202.44,0.03]
[1739168679987,13.19260783,202.47,202.44,0.03]
[1739168680996,13.19260783,202.46,202.44,0.03]
[1739168682413,13.19260783,202.47,202.44,0.03]
[1739168683504,13.19260783,202.48,202.44,0.03]
[1739168685717,13.19260783,202.47,202.44,0.03]
[1739168685915,13.19260783,202.46,202.44,0.03]
[1739168686112,13.19260783,202.45,202.44,0.03]
[1739168686418,13.19260783,202.46,202.44,0.03]
[1739168688116,13.19260783,202.45,202.44,0.03]
[1739168689239,17.14410783,202.45,202.44,0.03]
[1739168689594,18.07064599,202.45,202.44,0.03]
[1739168692323,31.60798452,202.45,202.44,0.03]
[1739168692824,18.07064599,202.45,202.44,0.03]
[1739168695927,78.67064599,202.45,202.44,0.03]
[1739168697224,73.79260783,202.45,202.44,0.03]
[1739168697526,13.19260783,202.47,202.44,0.03]
[1739168697729,3.9506,202.5,202.44,0.03]
[1739168697730,8.44403229,202.48,202.44,0.03]
[1739168698416,8.44403229,202.5,202.44,0.03]
[1739168699021,28.44403229,202.49,202.44,0.03]
[1739168699609,8.44403229,202.51,202.44,8.47403229]
[1739168699812,8.50703229,202.52,202.45,8.44403229]
[1739168700208,8.50703229,202.52,202.44,8.47403229]
[1739168700411,0.063,202.52,202.46,8.44403229]
[1739168701409,0.063,202.52,202.47,3.9512]
[1739168702735,0.063,202.52,202.45,13.18686904]
[1739168703312,13.18686904,202.51,202.44,3.9817]
[1739168703519,13.18686904,202.47,202.44,0.03]
[1739168704019,0.92606789,202.51,202.44,0.03]
[1739168704020,13.18686904,202.48,202.44,0.03]
[1739168704219,13.18686904,202.46,202.44,0.03]
[1739168704409,13.18686904,202.48,202.44,0.03]
[1739168704609,13.18686904,202.49,202.44,0.03]
[1739168704836,13.18686904,202.5,202.44,0.03]
[1739168705014,13.18686904,202.49,202.44,0.03]
[1739168705540,13.18686904,202.5,202.44,0.03]
[1739168708629,13.18686904,202.51,202.44,13.21686904]
[1739168709641,81.063,202.52,202.47,13.18686904]
[1739168710134,81.063,202.52,202.45,13.18686904]
[1739168710339,13.18686904,202.51,202.44,13.21686904]
[1739168710935,94.24986904,202.52,202.45,13.18686904]
[1739168712353,81.063,202.52,202.47,13.18686904]
[1739168712521,81.063,202.52,202.48,13.18686904]
[1739168713018,81.063,202.52,202.49,13.18686904]
[1739168713215,0.063,202.52,202.5,13.18686904]
[1739168713457,0.063,202.52,202.51,13.18686904]
[1739168715232,0.063,202.52,202.51,17.13726904]
[1739168715433,0.063,202.52,202.48,17.13786904]
[1739168718654,0.063,202.52,202.49,13.18686904]
[1739168718857,0.063,202.52,202.5,13.18686904]
[1739168719336,0.063,202.52,202.51,46.84969757]
[1739168719538,0.063,202.52,202.51,50.80009757]
[1739168719944,0.063,202.52,202.51,37.13726904]
[1739168720529,0.063,202.52,202.51,3.9504]
[1739168720753,0.063,202.52,202.48,3.951]
[1739168721062,0.063,202.52,202.48,17.13786904]
[1739168721955,0.063,202.52,202.5,13.18686904]
[1739168722137,0.063,202.52,202.51,33.43784904]
[1739168722338,0.063,202.52,202.51,33.18686904]
[1739168722551,0.063,202.52,202.51,20.0]
[1739168722933,0.063,202.52,202.51,33.18686904]
[1739168723767,0.063,202.52,202.51,37.13726904]
[1739168724857,0.063,202.52,202.51,50.80009757]
[1739168725767,0.063,202.52,202.51,46.04661888]
[1739168729167,0.063,202.52,202.51,55.73661888]
[1739168730955,0.063,202.52,202.51,137.63661888]
[1739168732184,0.063,202.52,202.51,138.88568936]
[1739168732377,0.063,202.52,202.51,109.19568936]
[1739168733183,0.063,202.55,202.54,33.66282853]
[1739168733393,0.063,202.55,202.54,42.09621888]
[1739168735258,0.063,202.55,202.54,46.04601888]
[1739168736089,0.063,202.55,202.48,0.03]
[1739168736090,0.12549,202.54,202.48,0.03]
[1739168736293,1.0,202.38,202.37,6.432e-05]
[1739168736461,2.0,202.32,202.29,0.03]
[1739168736829,2.0,202.32,202.28,19.64689151]
[1739168736830,35.53733853,202.29,202.28,19.64689151]
[1739168737083,35.53733853,202.29,202.26,89.38017678]
[1739168737084,2.12549,202.27,202.26,41.06116829]
[1739168737285,35.53733853,202.24,202.23,14.45564593]
[1739168737474,24.12571607,202.2,202.19,4.948]
[1739168737681,13.23314111,202.2,202.18,0.03]
[1739168738075,24.19641388,202.19,202.18,0.03]
[1739168738282,37.35885718,202.2,202.18,0.03]
[1739168738609,37.35885718,202.2,202.1,90.35046031]
[1739168738610,0.92759997,202.19,202.1,44.19389387]
[1739168738802,13.23314111,202.15,202.1,44.19389387]
[1739168739515,13.23314111,202.14,202.1,44.19389387]
[1739168739699,21.18202148,202.13,202.1,44.19389387]
[1739168739881,21.18202148,202.14,202.07,13.41184853]
[1739168740302,21.18202148,202.14,202.07,34.59387001]
[1739168740500,10.12165714,202.13,202.07,34.59387001]
[1739168741492,10.12165714,202.12,202.07,17.38999451]
[1739168742380,10.12165714,202.12,202.07,41.18202148]
[1739168742794,15.20697724,202.1,202.07,41.18202148]
[1739168742995,15.20697724,202.1,202.07,21.18202148]
[1739168743205,15.20697724,202.1,202.06,21.18202148]
[1739168743509,36.38899872,202.1,202.03,21.18202148]
[1739168744003,15.20697724,202.1,202.04,21.18202148]
[1739168744191,0.03975756,202.09,202.04,21.18202148]
[1739168744379,36.38899872,202.1,202.04,21.18202148]
[1739168744586,0.03975755,202.09,202.03,21.18202148]
[1739168745103,21.18202148,202.07,202.01,21.18202148]
[1739168745305,21.18202148,202.08,202.01,21.18202148]
[1739168746101,0.03975755,202.09,202.0,41.18202148]
[1739168746102,21.18202148,202.07,202.0,41.18202148]
[1739168746603,21.18202148,202.07,202.01,0.03]
[1739168746805,21.18202148,202.08,202.01,21.21202148]
[1739168747587,0.03975755,202.09,202.06,21.18202148]
[1739168748398,0.03975755,202.09,202.08,21.18202148]
[1739168749379,0.03975755,202.09,202.08,21.43300148]
[1739168749774,0.03975755,202.09,202.08,34.84485001]
[1739168750387,30.41395448,202.14,202.09,17.62142853]
[1739168750678,44.78054369,202.18,202.16,33.66282853]
[1739168750886,44.78054369,202.18,202.16,41.18202148]
[1739168751084,44.78054369,202.18,202.16,20.0]
[1739168751290,44.78054369,202.18,202.16,21.18202148]
[1739168751484,44.78054369,202.18,202.14,21.18202148]
[1739168751678,44.78054369,202.18,202.13,21.18202148]
[1739168751880,44.78054369,202.18,202.15,21.18202148]
[1739168752098,44.78054369,202.18,202.17,34.84485001]
[1739168752387,23.61720002,202.19,202.18,13.66282853]
[1739168752601,23.61720002,202.19,202.18,21.43300148]
[1739168752902,23.61720002,202.19,202.18,38.80165001]
[1739168753113,21.18202148,202.25,202.19,0.25098]
[1739168753316,21.18202148,202.24,202.19,0.25098]
[1739168754025,21.18202148,202.2,202.13,25.13982148]
[1739168754397,21.18202148,202.18,202.13,3.9578]
[1739168754591,21.18202148,202.18,202.11,25.39100148]
[1739168754813,21.18202148,202.18,202.11,4.20898]
[1739168755225,0.92749964,202.25,202.11,25.39100148]
[1739168755226,21.18202148,202.19,202.11,25.39100148]
[1739168755497,21.18202148,202.21,202.14,0.25098]
[1739168755801,21.18202148,202.21,202.14,21.30751148]
[1739168756109,84.2,202.24,202.16,0.12549]
[1739168756110,21.18202148,202.23,202.16,0.12549]
[1739168756499,21.18202148,202.2,202.13,21.18202148]
[1739168756844,21.18202148,202.19,202.13,13.53733853]
[1739168756993,21.18202148,202.19,202.14,3.9576]
[1739168757191,21.18202148,202.22,202.15,13.53733853]
[1739168757397,81.92720666,202.28,202.16,0.12549]
[1739168757398,21.18202148,202.23,202.16,0.12549]
[1739168757724,21.18202148,202.24,202.18,0.25098]
[1739168757918,21.18202148,202.25,202.18,34.84485001]
[1739168758222,21.18202148,202.25,202.18,21.18202148]
[1739168758435,21.18202148,202.22,202.17,20.0]
[1739168758722,21.18202148,202.26,202.18,0.25098]
[1739168759325,21.18202148,202.26,202.19,3.9566]
[1739168760211,21.18202148,202.24,202.19,3.9566]
[1739168760412,21.18202148,202.22,202.17,23.9568]
[1739168760614,21.18202148,202.22,202.17,3.9568]
[1739168760823,21.18202148,202.2,202.14,3.9576]
[1739168761132,21.18202148,202.19,202.14,3.9576]
[1739168761336,21.18202148,202.2,202.14,3.9576]
[1739168762424,21.18202148,202.19,202.14,3.9576]
[1739168762628,21.18202148,202.18,202.14,3.9576]
[1739168763529,21.18202148,202.18,202.12,3.958]
[1739168763827,85.1274841,202.23,202.12,3.958]
[1739168763828,21.18202148,202.15,202.12,3.958]
[1739168764211,21.18202148,202.16,202.12,3.958]
[1739168765431,21.18202148,202.15,202.1,3.9584]
[1739168765928,22.10967685,202.2,202.1,3.9584]
[1739168765929,21.18202148,202.14,202.1,3.9584]
[1739168766432,21.18202148,202.13,202.1,3.9584]
[1739168766835,21.18202148,202.14,202.1,3.9584]
[1739168767123,21.18202148,202.13,202.1,3.9584]
[1739168767317,21.18202148,202.13,202.07,21.18202148]
[1739168767521,21.18202148,202.12,202.08,3.9588]
[1739168767739,21.18202148,202.11,202.08,3.9588]
[1739168768112,21.18202148,202.09,202.03,3.9598]
[1739168768451,167.2,202.15,202.03,3.9598]
[1739168768452,21.18202148,202.06,202.03,3.9598]
[1739168769245,21.18202148,202.07,202.03,3.9598]
[1739168769445,21.18202148,202.08,202.02,13.8597]
[1739168770733,21.18202148,202.07,202.02,13.8597]
[1739168771874,21.18202148,202.07,202.03,0.03]
[1739168772046,0.92803579,202.11,202.03,0.03]
[1739168772047,21.18202148,202.08,202.03,0.03]
[1739168772848,21.18202148,202.07,202.03,0.03]
[1739168773316,400.0,202.0,201.99,17.89023474]
[1739168773522,400.0,202.0,201.99,41.18202148]
[1739168774422,400.0,202.0,201.99,45.14252148]
[1739168774622,379.6025,202.0,201.99,45.14252148]
[1739168774823,358.0466,202.0,201.99,45.14252148]
[1739168775042,337.7874,202.0,201.99,45.14252148]
[1739168775265,315.9861,202.0,201.99,45.39350148]
[1739168776649,293.3911,202.0,201.99,45.39350148]
[1739168777140,271.3634,202.0,201.99,45.39350148]
[1739168777656,271.3634,202.0,201.99,37.45824676]
[1739168778962,271.3634,202.0,201.99,37.20726676]
[1739168778963,251.489,202.0,201.99,37.20726676]
[1739168779255,251.489,202.0,201.99,23.9605]
[1739168780253,251.489,202.0,201.99,37.20726676]
[1739168781117,251.489,202.0,201.99,37.45824676]
[1739168781622,251.489,202.0,201.99,24.21148]
[1739168782734,207.8091,202.0,201.99,50.87009529]
[1739168782929,184.0119,202.0,201.99,50.87009529]
[1739168783341,163.4167,202.0,201.99,50.87009529]
[1739168783547,141.2898,202.0,201.99,50.87009529]
[1739168784951,141.2898,202.0,201.99,50.90009529]
[1739168785154,141.3528,202.0,201.99,50.90009529]
[1739168786255,141.3528,202.0,201.99,37.48824676]
[1739168786555,141.3528,202.0,201.99,24.24148]
[1739168786876,141.3528,202.0,201.99,23.9905]
[1739168789360,52.05813996,202.0,201.99,37.23726676]
[1739168789552,11.05254985,202.0,201.99,94.83686205]
[1739168789754,13.24676676,202.15,202.05,13.8579]
[1739168789953,13.24676676,202.14,202.07,13.24676676]
[1739168790338,13.24676676,202.13,202.06,13.24676676]
[1739168791349,13.24676676,202.09,202.02,17.20676676]
[1739168791756,13.24676676,202.09,202.02,3.96]
[1739168791942,13.24676676,202.07,202.02,3.96]
[1739168792540,13.24676676,202.1,202.02,27.10676676]
[1739168793958,13.24676676,202.09,202.02,9.9]
[1739168794939,13.24676676,202.09,202.02,13.86]
[1739168796362,13.24676676,202.11,202.02,13.86]
[1739168798040,14.17473541,202.11,202.02,13.86]
[1739168798654,13.24676676,202.11,202.02,13.86]
[1739168800369,13.24676676,202.11,202.03,13.24676676]
[1739168801264,84.263,202.13,202.06,13.24676676]
[1739168801471,84.263,202.13,202.08,13.24676676]
[1739168801645,0.063,202.13,202.1,13.24676676]
[1739168801964,0.063,202.13,202.09,13.24676676]
[1739168802549,0.063,202.13,202.1,3.9584]
[1739168804058,13.30976676,202.21,202.12,13.49774676]
[1739168804266,13.30976676,202.21,202.1,3.9584]
[1739168804267,0.063,202.21,202.15,13.24676676]
[1739168804658,0.063,202.21,202.16,3.9572]
[1739168806069,13.30976676,202.21,202.16,3.9572]
[1739168806378,13.24676676,202.19,202.16,3.9572]
[1739168807177,13.24676676,202.2,202.16,3.9572]
[1739168808051,13.30976676,202.21,202.15,9.8932]
[1739168808461,0.063,202.21,202.15,23.13996676]
[1739168808954,13.30976676,202.21,202.15,9.8932]
[1739168809389,0.063,202.21,202.15,23.13996676]
[1739168810677,0.063,202.21,202.15,27.09736676]
[1739168811269,13.30976676,202.21,202.15,13.8506]
[1739168812281,0.063,202.21,202.15,27.09736676]
[1739168814990,0.063,202.21,202.16,13.24676676]
[1739168816983,13.30976676,202.21,202.16,3.9572]
[1739168817882,13.24676676,202.19,202.16,3.9572]
[1739168818087,13.24676676,202.17,202.14,3.9576]
[1739168818778,13.24676676,202.19,202.14,3.9576]
[1739168819173,0.063,202.21,202.16,13.24676676]
[1739168819472,13.30976676,202.21,202.14,13.24676676]
[1739168819887,13.30976676,202.21,202.13,27.12916676]
[1739168820497,0.063,202.21,202.15,13.24676676]
[1739168821380,0.063,202.21,202.13,9.9246]
[1739168821381,0.063,202.21,202.17,13.24676676]
[1739168821593,0.063,202.21,202.19,13.24676676]
[1739168821788,0.063,202.21,202.2,13.24676676]
[1739168822086,0.063,202.21,202.2,13.49774676]
[1739168822688,0.063,202.21,202.2,17.45414676]
[1739168823792,0.063,202.21,202.2,3.9564]
[1739168824875,0.063,202.21,202.19,3.9566]
[1739168828288,0.063,202.21,202.2,13.24676676]
[1739168828994,0.063,202.21,202.2,26.90959529]
[1739168829897,0.063,202.21,202.2,13.49774676]
[1739168830102,0.063,202.21,202.2,17.45414676]
[1739168830402,0.063,202.21,202.2,30.70091352]
[1739168830890,0.063,202.21,202.2,44.11276205]
[1739168831591,0.063,202.22,202.21,13.41184853]
[1739168831782,0.063,202.22,202.21,26.65861529]
[1739168831981,12.52597118,202.32,202.25,0.25098]
[1739168832184,12.52597118,202.32,202.3,13.24676676]
[1739168833378,12.52597118,202.32,202.31,3.9543]
[1739168833975,12.52597118,202.32,202.29,3.9545]
[1739168835009,12.52597118,202.32,202.29,17.20126676]
[1739168836409,12.52597118,202.32,202.28,3.9549]
[1739168836922,12.52597118,202.32,202.28,17.20166676]
[1739168837097,12.52597118,202.32,202.29,13.24676676]
[1739168837302,12.52597118,202.32,202.26,17.20186676]
[1739168837489,25.77273794,202.32,202.26,3.9551]
[1739168837810,12.52597118,202.32,202.26,3.9551]
[1739168838208,12.52597118,202.32,202.26,17.20186676]
[1739168838593,25.77273794,202.32,202.25,13.24676676]
[1739168838800,13.24676676,202.31,202.24,13.24676676]
[1739168839805,13.24676676,202.27,202.21,3.9561]
[1739168840401,0.9271831,202.29,202.21,17.20286676]
[1739168840402,13.24676676,202.28,202.21,17.20286676]
[1739168840602,13.24676676,202.29,202.22,13.24676676]
[1739168841104,97.44676676,202.3,202.23,13.24676676]
[1739168842481,97.44676676,202.3,202.24,3.9556]
[1739168843000,84.2,202.3,202.25,13.24676676]
[1739168844519,25.77273794,202.32,202.25,13.24676676]
[1739168844689,25.77273794,202.32,202.26,3.9553]
[1739168845615,12.52597118,202.32,202.26,17.20206676]
[1739168846511,25.77273794,202.32,202.25,13.24676676]
[1739168846701,12.52597118,202.32,202.28,13.24676676]
[1739168847314,12.52597118,202.32,202.27,13.24676676]
[1739168847496,12.52597118,202.32,202.25,13.24676676]
[1739168847497,25.77273794,202.32,202.25,13.24676676]
[1739168847707,13.24676676,202.31,202.24,13.24676676]
[1739168848204,25.77273794,202.32,202.25,13.24676676]
[1739168848592,25.77273794,202.32,202.26,3.9553]
[1739168850314,12.52597118,202.32,202.26,17.20206676]
[1739168851207,25.77273794,202.32,202.26,3.9553]
[1739168851813,13.24676676,202.31,202.26,3.9553]
[1739168852004,13.24676676,202.31,202.22,0.25098]
[1739168852005,13.24676676,202.29,202.21,13.24676676]
[1739168852615,13.24676676,202.29,202.22,13.24676676]
[1739168853015,13.24676676,202.29,202.23,3.9558]
[1739168853513,0.92711224,202.31,202.19,81.9]
[1739168853687,13.24676676,202.26,202.2,3.9564]
[1739168854195,13.24676676,202.25,202.2,3.9564]
[1739168854397,13.24676676,202.26,202.2,3.9564]
[1739168854904,13.24676676,202.27,202.2,13.24676676]
[1739168856124,13.24676676,202.26,202.19,17.20336676]
[1739168856300,13.24676676,202.25,202.19,3.9566]
[1739168856719,13.24676676,202.25,202.2,0.03]
[1739168857017,13.24676676,202.21,202.2,0.03]
[1739168857702,14.17433084,202.21,202.2,0.03]
[1739168858410,51.01104613,202.21,202.2,0.03]
[1739168861521,51.13653613,202.21,202.2,0.03]
[1739168862136,55.09273613,202.21,202.2,0.03]
[1739168863819,39.72047937,202.21,202.2,0.03]
[1739168864125,33.11677937,202.21,202.2,0.03]
[1739168865120,47.36354613,202.21,202.2,0.03]
[1739168865307,48.36354613,202.21,202.2,0.03]
[1739168865513,14.41184853,202.14,202.13,0.03]
[1739168865820,28.58666531,202.14,202.13,0.03]
[1739168866201,27.58666531,202.14,202.13,0.03]
[1739168867322,31.54426531,202.14,202.13,0.03]
[1739168867926,14.17481678,202.14,202.13,0.03]
[1739168872237,13.24676676,202.16,202.13,0.03]
[1739168873028,13.24676676,202.17,202.13,0.03]
[1739168874020,13.24676676,202.18,202.13,0.03]
[1739168874221,13.24676676,202.19,202.13,0.03]
[1739168875331,13.24676676,202.2,202.13,13.27676676]
[1739168875522,178.44676676,202.21,202.13,13.27676676]
[1739168875919,13.24676676,202.2,202.13,13.27676676]
[1739168876957,13.24676676,202.21,202.14,3.9576]
[1739168877133,13.24676676,202.22,202.15,13.24676676]
[1739168877436,13.24676676,202.24,202.17,13.24676676]
[1739168877819,13.24676676,202.23,202.16,13.24676676]
[1739168878118,4.82730296,202.26,202.15,13.24676676]
[1739168878119,13.24676676,202.22,202.15,13.24676676]
[1739168878847,13.24676676,202.22,202.14,13.24676676]
[1739168879141,13.24676676,202.21,202.13,17.23456676]
[1739168879351,13.24676676,202.2,202.13,17.23456676]
[1739168879647,13.24676676,202.19,202.13,3.9878]
[1739168880442,13.24676676,202.2,202.13,17.23456676]
[1739168880816,88.156,202.23,202.13,17.23456676]
[1739168880817,13.24676676,202.21,202.14,13.24676676]
[1739168881138,13.24676676,202.19,202.13,3.9878]
[1739168882639,13.24676676,202.18,202.13,0.03]
[1739168882829,13.24676676,202.19,202.13,0.03]
[1739168883018,0.063,202.2,202.15,13.24676676]
[1739168884636,0.063,202.2,202.16,17.20396676]
[1739168887850,0.063,202.2,202.16,3.9572]
[1739168889240,0.063,202.2,202.14,3.9576]
[1739168889433,0.063,202.2,202.14,17.20436676]
[1739168890341,0.063,202.2,202.14,3.9576]
[1739168890642,13.30976676,202.2,202.14,3.9576]
[1739168890840,13.24676676,202.19,202.14,3.9576]
[1739168891846,8.46888822,202.19,202.14,3.9576]
[1739168892247,8.46888822,202.19,202.13,3.9878]
[1739168893646,0.063,202.2,202.13,12.45668822]
[1739168895052,8.53188822,202.2,202.13,12.45668822]
[1739168895247,8.46888822,202.19,202.13,3.9878]
[1739168896421,8.53188822,202.2,202.13,12.45668822]
[1739168897048,0.063,202.2,202.13,12.45668822]
[1739168897257,0.063,202.2,202.15,8.46888822]
[1739168898158,8.53188822,202.2,202.13,3.9878]
[1739168898959,8.53188822,202.2,202.13,12.45668822]
[1739168899560,0.063,202.2,202.14,8.46888822]
[1739168900255,0.063,202.2,202.15,3.9574]
[1739168901155,8.53188822,202.2,202.15,3.9574]
[1739168901969,0.063,202.2,202.15,3.9574]
[1739168902466,0.063,202.2,202.14,3.9576]
[1739168904765,9.39641324,202.19,202.13,0.03]
[1739168905058,8.46888822,202.17,202.13,0.03]
[1739168905956,8.46888822,202.14,202.13,0.03]
[1739168908665,8.46888822,202.15,202.13,0.03]
[1739168908866,8.46888822,202.14,202.13,0.03]
[1739168910264,12.42648822,202.14,202.13,0.03]
[1739168911666,8.46888822,202.14,202.13,0.03]
[1739168911867,3.9574,202.15,202.13,0.03]
[1739168911868,8.46888822,202.15,202.13,0.03]
[1739168912562,8.46888822,202.14,202.13,0.03]
[1739168913071,10.52219377,202.14,202.13,0.03]
[1739168913363,3.958,202.12,202.01,0.03]
[1739168913568,8.46888822,202.06,202.01,0.03]
[1739168913739,13.24907109,202.06,202.01,0.03]
[1739168914760,20.92809052,202.08,202.01,0.03]
[1739168914965,13.24907109,202.07,202.01,0.03]
[1739168915248,20.0,202.08,202.02,13.24907109]
[1739168915448,20.0,202.08,202.02,17.20887109]
[1739168915662,13.24907109,202.09,202.02,17.20887109]
[1739168915845,13.24907109,202.1,202.03,13.24907109]
[1739168916247,13.24907109,202.1,202.02,17.20887109]
[1739168917166,13.24907109,202.08,202.01,17.23917109]
[1739168917867,98.37711087,202.11,202.04,13.24907109]
[1739168918044,13.24907109,202.11,202.04,13.24907109]
[1739168919473,13.24907109,202.11,202.05,3.9594]
[1739168921049,13.24907109,202.13,202.06,13.24907109]
[1739168921248,84.263,202.14,202.07,13.24907109]
[1739168921249,97.51207109,202.14,202.07,13.24907109]
[1739168921991,13.24907109,202.13,202.06,20.89327109]
[1739168922273,13.24907109,202.12,202.06,7.6442]
[1739168922572,0.9277821,202.13,202.06,7.6442]
[1739168922573,13.24907109,202.11,202.06,7.6442]
[1739168922760,13.24907109,202.12,202.06,7.6442]
[1739168923074,97.51207109,202.14,202.07,13.24907109]
[1739168923366,0.063,202.14,202.1,13.24907109]
[1739168923753,0.063,202.2,202.14,6.1357]
[1739168923965,0.063,202.2,202.19,13.24907109]
[1739168924269,0.063,202.2,202.16,13.24907109]
[1739168924456,13.24907109,202.19,202.14,6.1357]
[1739168925167,0.99055318,202.2,202.14,6.1357]
[1739168925168,13.24907109,202.18,202.14,6.1357]
[1739168925368,13.24907109,202.19,202.14,6.1357]
[1739168925745,14.23962427,202.2,202.14,6.1357]
[1739168925949,13.31207109,202.2,202.14,6.1357]
[1739168926370,13.24907109,202.19,202.14,6.1357]
[1739168928057,13.31207109,202.2,202.14,6.1357]
[1739168928256,0.063,202.2,202.14,6.1357]
[1739168928470,0.063,202.2,202.14,10.0933]
[1739168928874,0.063,202.2,202.15,13.24907109]
[1739168929178,7.59624049,202.31,202.19,64.24005109]
[1739168929494,7.59624049,202.31,202.26,13.24907109]
[1739168929675,7.50732086,202.31,202.26,13.24907109]
[1739168929875,20.75639195,202.31,202.24,13.24907109]
[1739168930076,7.50732086,202.31,202.21,0.12549]
[1739168930258,7.50732086,202.31,202.27,13.24907109]
[1739168930666,7.50732086,202.31,202.26,13.24907109]
[1739168930866,7.50732086,202.31,202.24,13.24907109]
[1739168931068,20.75639195,202.31,202.24,13.24907109]
[1739168931772,13.24907109,202.29,202.22,13.24907109]
[1739168931986,13.24907109,202.27,202.2,6.1357]
[1739168932279,13.24907109,202.29,202.22,13.24907109]
[1739168932674,97.44907109,202.3,202.23,13.24907109]
[1739168932866,84.2,202.3,202.24,13.24907109]
[1739168933074,97.44907109,202.3,202.23,13.24907109]
[1739168933381,13.24907109,202.29,202.22,13.24907109]
[1739168935781,13.24907109,202.29,202.21,17.33076109]
[1739168937387,13.24907109,202.3,202.23,13.24907109]
[1739168940184,17.20357109,202.3,202.23,13.24907109]
[1739168940402,13.24907109,202.28,202.21,13.24907109]
[1739168940571,13.24907109,202.25,202.18,17.20587109]
[1739168941403,13.24907109,202.22,202.17,1.5085]
[1739168941686,13.24907109,202.2,202.14,6.2964]
[1739168941986,13.24907109,202.2,202.14,0.03]
[1739168942486,13.24907109,202.19,202.14,0.03]
[1739168943885,17.20547109,202.2,202.14,0.03]
[1739168944385,13.24907109,202.2,202.14,0.03]